[Event "Titled Tuesday Blitz April 19 Early 2022"]
[White "Bashirli, Saadat"]
[Black "Manukian, Artak"]
[WhiteFideId "13429990"]
[BlackFideId "13301373"]
[WhiteElo "1173"]
[BlackElo "2301"]
[Result "1-0"]
[Round "10"]
[TimeControl "180+1"]
[Date "2022.04.19"]
[WhiteClock "0:00:05"]
[BlackClock "0:00:01"]

1. d4 {[%clk 0:03:00]}  Nf6 {[%clk 0:02:52]} 2. Bg5 {[%clk 0:02:59]}  c5 {[%clk 0:02:52]} 3. dxc5 {[%clk 0:02:58]}  Ne4 {[%clk 0:02:50]} 4. Bf4 {[%clk 0:02:55]}  Qa5+ {[%clk 0:02:49]} 5. c3 {[%clk 0:02:55]}  Qxc5 {[%clk 0:02:49]} 6. e3 {[%clk 0:02:50]}  Nc6 {[%clk 0:02:44]} 7. Nf3 {[%clk 0:02:39]}  d5 {[%clk 0:02:37]} 8. Nd4 {[%clk 0:02:37]}  e5 {[%clk 0:02:25]} 9. Nxc6 {[%clk 0:02:25]}  exf4 {[%clk 0:02:24]} 10. Nd4 {[%clk 0:02:22]}  fxe3 {[%clk 0:02:22]} 11. fxe3 {[%clk 0:02:23]}  a6 {[%clk 0:01:49]} 12. Bd3 {[%clk 0:02:10]}  Be7 {[%clk 0:01:37]} 13. O-O {[%clk 0:02:06]}  O-O {[%clk 0:01:35]} 14. Nd2 {[%clk 0:01:49]}  f5 {[%clk 0:01:25]} 15. Nxe4 {[%clk 0:01:40]}  dxe4 {[%clk 0:01:19]} 16. Bc2 {[%clk 0:01:39]}  g6 {[%clk 0:01:10]} 17. Bb3+ {[%clk 0:01:38]}  Kg7 {[%clk 0:01:09]} 18. Be6 {[%clk 0:01:32]}  Qb6 {[%clk 0:00:54]} 19. Bxc8 {[%clk 0:01:12]}  Raxc8 {[%clk 0:00:52]} 20. Qe2 {[%clk 0:01:10]}  Bf6 {[%clk 0:00:48]} 21. Rad1 {[%clk 0:01:08]}  Rfd8 {[%clk 0:00:46]} 22. Kh1 {[%clk 0:01:00]}  h5 {[%clk 0:00:44]} 23. Kg1 {[%clk 0:00:48]}  Rd6 {[%clk 0:00:40]} 24. Kh1 {[%clk 0:00:42]}  Rcd8 {[%clk 0:00:39]} 25. Qf2 {[%clk 0:00:38]}  Bxd4 {[%clk 0:00:30]} 26. exd4 {[%clk 0:00:35]}  Re6 {[%clk 0:00:26]} 27. Rfe1 {[%clk 0:00:31]}  Rf8 {[%clk 0:00:16]} 28. g3 {[%clk 0:00:24]}  g5 {[%clk 0:00:14]} 29. Qe2 {[%clk 0:00:20]}  Kg6 {[%clk 0:00:10]} 30. Rf1 {[%clk 0:00:19]}  Qd6 {[%clk 0:00:09]} 31. Qe3 {[%clk 0:00:18]}  f4 {[%clk 0:00:08]} 32. gxf4 {[%clk 0:00:18]}  Rxf4 {[%clk 0:00:09]} 33. Rxf4 {[%clk 0:00:17]}  Qxf4 {[%clk 0:00:09]} 34. Qxf4 {[%clk 0:00:13]}  gxf4 {[%clk 0:00:10]} 35. d5 {[%clk 0:00:13]}  Rd6 {[%clk 0:00:11]} 36. c4 {[%clk 0:00:13]}  b6 {[%clk 0:00:10]} 37. b4 {[%clk 0:00:13]}  Kf5 {[%clk 0:00:09]} 38. c5 {[%clk 0:00:13]}  bxc5 {[%clk 0:00:10]} 39. bxc5 {[%clk 0:00:14]}  Rd8 {[%clk 0:00:10]} 40. d6 {[%clk 0:00:14]}  Ke6 {[%clk 0:00:05]} 41. Kg2 {[%clk 0:00:13]}  f3+ {[%clk 0:00:01]} 42. Kf2 {[%clk 0:00:13]}  Kd7 {[%clk 0:00:01]} 43. Ke3 {[%clk 0:00:12]}  Re8 {[%clk 0:00:01]} 44. Rc1 {[%clk 0:00:07]}  Kc6 {[%clk 0:00:01]} 45. Rc4 {[%clk 0:00:05]} 1-0


[Site "https://www.chess.com"]

[Event "Titled Tuesday Blitz April 19 Early 2022"]
[White "Bilych, Olexiy"]
[Black "Oganian, Miran"]
[WhiteFideId "14156504"]
[BlackFideId "4122488"]
[WhiteElo "2176"]
[BlackElo "2357"]
[Result "0-1"]
[Round "10"]
[TimeControl "180+1"]
[Date "2022.04.19"]
[WhiteClock "0:00:10"]
[BlackClock "0:00:54"]

1. e4 {[%clk 0:03:00]}  e6 {[%clk 0:03:00]} 2. d4 {[%clk 0:03:00]}  d5 {[%clk 0:03:00]} 3. Nc3 {[%clk 0:03:00]}  Bb4 {[%clk 0:03:00]} 4. e5 {[%clk 0:02:59]}  c5 {[%clk 0:03:01]} 5. a3 {[%clk 0:03:00]}  Bxc3+ {[%clk 0:03:01]} 6. bxc3 {[%clk 0:03:01]}  Ne7 {[%clk 0:03:02]} 7. Qg4 {[%clk 0:02:58]}  Qc7 {[%clk 0:03:02]} 8. Qxg7 {[%clk 0:02:58]}  Rg8 {[%clk 0:03:02]} 9. Qxh7 {[%clk 0:02:58]}  cxd4 {[%clk 0:03:03]} 10. Ne2 {[%clk 0:02:58]}  Nbc6 {[%clk 0:03:04]} 11. f4 {[%clk 0:02:59]}  dxc3 {[%clk 0:03:05]} 12. Qd3 {[%clk 0:02:59]}  Bd7 {[%clk 0:03:05]} 13. Qxc3 {[%clk 0:02:57]}  O-O-O {[%clk 0:03:05]} 14. Be3 {[%clk 0:02:54]}  Kb8 {[%clk 0:03:02]} 15. Rb1 {[%clk 0:02:52]}  b6 {[%clk 0:03:02]} 16. Rg1 {[%clk 0:02:47]}  Bc8 {[%clk 0:03:03]} 17. g4 {[%clk 0:02:41]}  Bb7 {[%clk 0:03:03]} 18. Nd4 {[%clk 0:02:37]}  Rc8 {[%clk 0:02:36]} 19. Bd3 {[%clk 0:02:21]}  Qd7 {[%clk 0:02:33]} 20. Qb3 {[%clk 0:01:44]}  Nxd4 {[%clk 0:02:31]} 21. Bxd4 {[%clk 0:01:44]}  Nc6 {[%clk 0:02:31]} 22. Bf2 {[%clk 0:01:39]}  d4 {[%clk 0:02:23]} 23. Qa4 {[%clk 0:01:27]}  Qd5 {[%clk 0:02:11]} 24. g5 {[%clk 0:01:04]}  Qf3 {[%clk 0:01:38]} 25. Bg3 {[%clk 0:01:03]}  Rgd8 {[%clk 0:01:11]} 26. Rf1 {[%clk 0:00:48]}  Qe3+ {[%clk 0:01:10]} 27. Kd1 {[%clk 0:00:48]}  Na5 {[%clk 0:01:04]} 28. Qb4 {[%clk 0:00:42]}  Bf3+ {[%clk 0:01:00]} 29. Rxf3 {[%clk 0:00:40]}  Qxf3+ {[%clk 0:01:01]} 30. Ke1 {[%clk 0:00:31]}  Nc4 {[%clk 0:00:59]} 31. Rb3 {[%clk 0:00:19]}  Ne3 {[%clk 0:00:55]} 32. Bf2 {[%clk 0:00:10]}  Qd1# {[%clk 0:00:54]} 0-1


[Site "https://www.chess.com"]

[Event "Titled Tuesday Blitz April 19 Early 2022"]
[White "Bortnyk, Olexandr"]
[Black "Paravyan, David"]
[WhiteFideId "14120828"]
[BlackFideId "4194985"]
[WhiteElo "2723"]
[BlackElo "2569"]
[Result "1-0"]
[Round "10"]
[TimeControl "180+1"]
[Date "2022.04.19"]
[WhiteClock "0:00:03"]
[BlackClock "0:00:02"]

1. d4 {[%clk 0:03:00]}  Nf6 {[%clk 0:02:59]} 2. Nc3 {[%clk 0:03:00]}  d5 {[%clk 0:02:58]} 3. Bf4 {[%clk 0:03:01]}  g6 {[%clk 0:02:59]} 4. Qd2 {[%clk 0:03:00]}  Bg7 {[%clk 0:02:58]} 5. Bh6 {[%clk 0:03:00]}  Bxh6 {[%clk 0:02:58]} 6. Qxh6 {[%clk 0:03:00]}  c6 {[%clk 0:02:58]} 7. f3 {[%clk 0:03:00]}  b5 {[%clk 0:02:59]} 8. e3 {[%clk 0:02:55]}  Nbd7 {[%clk 0:02:55]} 9. Nh3 {[%clk 0:02:50]}  b4 {[%clk 0:02:36]} 10. Na4 {[%clk 0:02:44]}  Nb6 {[%clk 0:02:31]} 11. Nc5 {[%clk 0:02:44]}  Bxh3 {[%clk 0:02:30]} 12. Qxh3 {[%clk 0:02:40]}  Nbd7 {[%clk 0:02:22]} 13. Nd3 {[%clk 0:02:32]}  Qa5 {[%clk 0:02:16]} 14. Qh6 {[%clk 0:02:29]}  c5 {[%clk 0:01:35]} 15. Be2 {[%clk 0:02:21]}  Qb6 {[%clk 0:01:12]} 16. c3 {[%clk 0:02:12]}  bxc3 {[%clk 0:00:57]} 17. bxc3 {[%clk 0:02:13]}  c4 {[%clk 0:00:58]} 18. Ne5 {[%clk 0:01:47]}  Nxe5 {[%clk 0:00:56]} 19. dxe5 {[%clk 0:01:47]}  Nd7 {[%clk 0:00:56]} 20. Qg7 {[%clk 0:01:40]}  O-O-O {[%clk 0:00:52]} 21. Kf2 {[%clk 0:01:15]}  Qe6 {[%clk 0:00:49]} 22. Qh6 {[%clk 0:00:45]}  Qxe5 {[%clk 0:00:49]} 23. Rab1 {[%clk 0:00:43]}  Kc7 {[%clk 0:00:47]} 24. Rb5 {[%clk 0:00:41]}  Rb8 {[%clk 0:00:26]} 25. Ra5 {[%clk 0:00:41]}  Rb7 {[%clk 0:00:26]} 26. e4 {[%clk 0:00:26]}  Nf6 {[%clk 0:00:12]} 27. Rd1 {[%clk 0:00:18]}  Kb8 {[%clk 0:00:09]} 28. Qe3 {[%clk 0:00:15]}  Rd8 {[%clk 0:00:08]} 29. Bxc4 {[%clk 0:00:12]}  Qc7 {[%clk 0:00:07]} 30. Rc5 {[%clk 0:00:12]}  Rb2+ {[%clk 0:00:05]} 31. Kg1 {[%clk 0:00:11]}  Qb6 {[%clk 0:00:05]} 32. Qd4 {[%clk 0:00:04]}  Nd7 {[%clk 0:00:05]} 33. Rxd5 {[%clk 0:00:04]}  e6 {[%clk 0:00:01]} 34. Qxb6+ {[%clk 0:00:03]}  axb6 {[%clk 0:00:01]} 35. Rxd7 {[%clk 0:00:03]}  Rc8 {[%clk 0:00:01]} 36. Ba6 {[%clk 0:00:02]}  Rxc3 {[%clk 0:00:02]} 37. Rb7+ {[%clk 0:00:03]}  Kc8 {[%clk 0:00:02]} 38. Rxb6+ {[%clk 0:00:03]} 1-0


[Site "https://www.chess.com"]

[Event "Titled Tuesday Blitz April 19 Early 2022"]
[White "Buchenau, Frank"]
[Black "Dwilewicz, Katarzyna"]
[WhiteFideId "4604350"]
[BlackFideId "1148486"]
[WhiteElo "2193"]
[BlackElo "1907"]
[Result "1-0"]
[Round "10"]
[TimeControl "180+1"]
[Date "2022.04.19"]
[WhiteClock "0:00:18"]
[BlackClock "0:00:03"]

1. e4 {[%clk 0:03:00]}  c5 {[%clk 0:02:57]} 2. Nf3 {[%clk 0:03:00]}  d6 {[%clk 0:02:58]} 3. Bb5+ {[%clk 0:03:00]}  Nd7 {[%clk 0:02:57]} 4. O-O {[%clk 0:02:59]}  a6 {[%clk 0:02:46]} 5. Bd3 {[%clk 0:02:58]}  Ngf6 {[%clk 0:02:42]} 6. Re1 {[%clk 0:02:57]}  e6 {[%clk 0:02:40]} 7. c3 {[%clk 0:02:57]}  b5 {[%clk 0:02:38]} 8. Bc2 {[%clk 0:02:46]}  c4 {[%clk 0:02:34]} 9. b4 {[%clk 0:02:44]}  Bb7 {[%clk 0:02:29]} 10. a4 {[%clk 0:02:41]}  Be7 {[%clk 0:02:26]} 11. d4 {[%clk 0:02:39]}  cxd3 {[%clk 0:02:21]} 12. Qxd3 {[%clk 0:02:39]}  Bc6 {[%clk 0:02:12]} 13. Nd4 {[%clk 0:02:37]}  Ne5 {[%clk 0:02:07]} 14. Qg3 {[%clk 0:02:34]}  O-O {[%clk 0:02:03]} 15. f4 {[%clk 0:02:23]}  Qb6 {[%clk 0:01:56]} 16. Be3 {[%clk 0:02:08]}  Nc4 {[%clk 0:01:54]} 17. Nf5 {[%clk 0:02:02]}  exf5 {[%clk 0:01:45]} 18. Bxb6 {[%clk 0:02:01]}  Nxb6 {[%clk 0:01:46]} 19. exf5 {[%clk 0:01:55]}  Rfe8 {[%clk 0:01:45]} 20. axb5 {[%clk 0:01:49]}  axb5 {[%clk 0:01:43]} 21. Rxa8 {[%clk 0:01:48]}  Bxa8 {[%clk 0:01:41]} 22. Na3 {[%clk 0:01:44]}  Bc6 {[%clk 0:01:40]} 23. Bd3 {[%clk 0:01:40]}  Nh5 {[%clk 0:01:21]} 24. Qf2 {[%clk 0:01:38]}  Nd5 {[%clk 0:01:16]} 25. Bxb5 {[%clk 0:01:32]}  Bxb5 {[%clk 0:01:08]} 26. Nxb5 {[%clk 0:01:32]}  Nhxf4 {[%clk 0:01:06]} 27. Qd4 {[%clk 0:01:21]}  Kf8 {[%clk 0:00:58]} 28. c4 {[%clk 0:01:16]}  Bd8 {[%clk 0:00:58]} 29. Rxe8+ {[%clk 0:01:15]}  Kxe8 {[%clk 0:00:59]} 30. cxd5 {[%clk 0:01:14]}  Ne2+ {[%clk 0:00:59]} 31. Kf1 {[%clk 0:01:10]}  Nxd4 {[%clk 0:01:00]} 32. Nxd4 {[%clk 0:01:10]}  Bb6 {[%clk 0:00:53]} 33. Nc6 {[%clk 0:01:07]}  g6 {[%clk 0:00:50]} 34. f6 {[%clk 0:01:02]}  h5 {[%clk 0:00:45]} 35. Ke2 {[%clk 0:01:00]}  Bg1 {[%clk 0:00:38]} 36. h3 {[%clk 0:00:59]}  Kd7 {[%clk 0:00:38]} 37. b5 {[%clk 0:00:56]}  Kc7 {[%clk 0:00:36]} 38. Kf3 {[%clk 0:00:54]}  Bc5 {[%clk 0:00:23]} 39. Kf4 {[%clk 0:00:48]}  Ba3 {[%clk 0:00:22]} 40. g4 {[%clk 0:00:43]}  Bc1+ {[%clk 0:00:20]} 41. Ke4 {[%clk 0:00:38]}  hxg4 {[%clk 0:00:17]} 42. hxg4 {[%clk 0:00:39]}  Bg5 {[%clk 0:00:18]} 43. Na5 {[%clk 0:00:27]}  Bxf6 {[%clk 0:00:17]} 44. Nc4 {[%clk 0:00:28]}  Be7 {[%clk 0:00:13]} 45. Kd3 {[%clk 0:00:24]}  Kb7 {[%clk 0:00:09]} 46. Kc3 {[%clk 0:00:23]}  Kc7 {[%clk 0:00:07]} 47. b6+ {[%clk 0:00:22]}  Kb7 {[%clk 0:00:07]} 48. Kb4 {[%clk 0:00:22]}  Bd8 {[%clk 0:00:07]} 49. Kb5 {[%clk 0:00:22]}  Be7 {[%clk 0:00:06]} 50. Na5+ {[%clk 0:00:22]}  Kc8 {[%clk 0:00:03]} 51. Kc6 {[%clk 0:00:18]} 1-0


[Site "https://www.chess.com"]

[Event "Titled Tuesday Blitz April 19 Early 2022"]
[White "Chigaev, Maksim"]
[Black "Gabrielian, Artur"]
[WhiteFideId "4108116"]
[BlackFideId "4131002"]
[WhiteElo "2478"]
[BlackElo "2440"]
[Result "1-0"]
[Round "10"]
[TimeControl "180+1"]
[Date "2022.04.19"]
[WhiteClock "0:00:23"]
[BlackClock "0:00:05"]

1. d4 {[%clk 0:03:00]}  Nf6 {[%clk 0:02:59]} 2. c4 {[%clk 0:03:00]}  g6 {[%clk 0:02:59]} 3. Nc3 {[%clk 0:03:00]}  Bg7 {[%clk 0:03:00]} 4. e4 {[%clk 0:03:01]}  d6 {[%clk 0:03:00]} 5. Nf3 {[%clk 0:03:02]}  O-O {[%clk 0:03:00]} 6. Be2 {[%clk 0:03:02]}  e5 {[%clk 0:02:59]} 7. O-O {[%clk 0:03:03]}  h6 {[%clk 0:02:59]} 8. Re1 {[%clk 0:03:02]}  Na6 {[%clk 0:02:53]} 9. dxe5 {[%clk 0:02:48]}  dxe5 {[%clk 0:02:52]} 10. Nxe5 {[%clk 0:02:49]}  Qxd1 {[%clk 0:02:49]} 11. Bxd1 {[%clk 0:02:45]}  Re8 {[%clk 0:02:46]} 12. Nf3 {[%clk 0:02:36]}  Nc5 {[%clk 0:02:41]} 13. Bc2 {[%clk 0:02:35]}  c6 {[%clk 0:02:34]} 14. e5 {[%clk 0:02:30]}  Nfd7 {[%clk 0:02:31]} 15. h3 {[%clk 0:02:24]}  g5 {[%clk 0:02:14]} 16. Be3 {[%clk 0:02:08]}  b6 {[%clk 0:01:58]} 17. Ne4 {[%clk 0:01:58]}  Nxe4 {[%clk 0:01:45]} 18. Bxe4 {[%clk 0:01:58]}  Bb7 {[%clk 0:01:35]} 19. Bd4 {[%clk 0:01:57]}  Rab8 {[%clk 0:01:30]} 20. Bf5 {[%clk 0:01:56]}  Nf8 {[%clk 0:01:25]} 21. c5 {[%clk 0:01:56]}  Ne6 {[%clk 0:01:21]} 22. Bxe6 {[%clk 0:01:45]}  Rxe6 {[%clk 0:01:20]} 23. Rad1 {[%clk 0:01:38]}  Ba6 {[%clk 0:01:06]} 24. b3 {[%clk 0:01:38]}  Bf8 {[%clk 0:01:01]} 25. Rc1 {[%clk 0:01:33]}  Bd3 {[%clk 0:00:57]} 26. Be3 {[%clk 0:01:30]}  Be4 {[%clk 0:00:48]} 27. cxb6 {[%clk 0:01:08]}  axb6 {[%clk 0:00:46]} 28. Nd4 {[%clk 0:01:09]}  Rxe5 {[%clk 0:00:46]} 29. Nxc6 {[%clk 0:01:09]}  Bxc6 {[%clk 0:00:47]} 30. Rxc6 {[%clk 0:01:09]}  Bc5 {[%clk 0:00:47]} 31. Rxh6 {[%clk 0:01:08]}  Rbe8 {[%clk 0:00:43]} 32. Kf1 {[%clk 0:01:04]}  b5 {[%clk 0:00:32]} 33. Bd2 {[%clk 0:01:00]}  Rxe1+ {[%clk 0:00:31]} 34. Bxe1 {[%clk 0:01:00]}  Ra8 {[%clk 0:00:32]} 35. Rc6 {[%clk 0:00:59]}  Be7 {[%clk 0:00:29]} 36. Rc2 {[%clk 0:00:58]}  b4 {[%clk 0:00:29]} 37. g4 {[%clk 0:00:56]}  Kg7 {[%clk 0:00:29]} 38. Bd2 {[%clk 0:00:55]}  Kg6 {[%clk 0:00:28]} 39. Be3 {[%clk 0:00:53]}  f6 {[%clk 0:00:28]} 40. Kg2 {[%clk 0:00:53]}  Ra6 {[%clk 0:00:26]} 41. Bd4 {[%clk 0:00:52]}  Bf8 {[%clk 0:00:23]} 42. Re2 {[%clk 0:00:49]}  Kf7 {[%clk 0:00:22]} 43. Kf3 {[%clk 0:00:48]}  Bd6 {[%clk 0:00:20]} 44. Rc2 {[%clk 0:00:47]}  Bf8 {[%clk 0:00:20]} 45. Ke4 {[%clk 0:00:47]}  Ke6 {[%clk 0:00:20]} 46. f4 {[%clk 0:00:44]}  gxf4 {[%clk 0:00:20]} 47. Kxf4 {[%clk 0:00:45]}  Kd5 {[%clk 0:00:19]} 48. Bf2 {[%clk 0:00:36]}  Bh6+ {[%clk 0:00:16]} 49. Kf5 {[%clk 0:00:37]}  Bg5 {[%clk 0:00:08]} 50. h4 {[%clk 0:00:37]}  Bh6 {[%clk 0:00:08]} 51. Re2 {[%clk 0:00:29]}  Bf8 {[%clk 0:00:07]} 52. Rd2+ {[%clk 0:00:28]}  Kc6 {[%clk 0:00:07]} 53. Bd4 {[%clk 0:00:28]}  Ra5+ {[%clk 0:00:05]} 54. Kxf6 {[%clk 0:00:22]}  Rd5 {[%clk 0:00:05]} 55. Be3 {[%clk 0:00:23]} 1-0


[Site "https://www.chess.com"]

[Event "Titled Tuesday Blitz April 19 Early 2022"]
[White "Cramling Bellon, Anna"]
[Black "Zemerov, Vladimir"]
[WhiteFideId "32009232"]
[BlackFideId "4111583"]
[WhiteElo "1905"]
[BlackElo "2277"]
[Result "0-1"]
[Round "10"]
[TimeControl "180+1"]
[Date "2022.04.19"]
[WhiteClock "0:00:02"]
[BlackClock "0:01:41"]

1. d4 {[%clk 0:03:00]}  d6 {[%clk 0:02:58]} 2. Nf3 {[%clk 0:03:00]}  g6 {[%clk 0:02:59]} 3. c4 {[%clk 0:03:00]}  Bg7 {[%clk 0:03:00]} 4. e4 {[%clk 0:03:00]}  Nc6 {[%clk 0:03:01]} 5. h3 {[%clk 0:02:58]}  e5 {[%clk 0:03:02]} 6. Be3 {[%clk 0:02:56]}  f5 {[%clk 0:03:00]} 7. d5 {[%clk 0:02:53]}  f4 {[%clk 0:03:00]} 8. dxc6 {[%clk 0:02:38]}  fxe3 {[%clk 0:02:58]} 9. fxe3 {[%clk 0:02:38]}  bxc6 {[%clk 0:02:57]} 10. Be2 {[%clk 0:02:35]}  Bh6 {[%clk 0:02:57]} 11. Qd3 {[%clk 0:02:25]}  Ne7 {[%clk 0:02:54]} 12. O-O {[%clk 0:02:25]}  c5 {[%clk 0:02:55]} 13. Nc3 {[%clk 0:02:24]}  Be6 {[%clk 0:02:54]} 14. Nd2 {[%clk 0:02:10]}  Rf8 {[%clk 0:02:50]} 15. Nd5 {[%clk 0:02:07]}  Ng8 {[%clk 0:02:37]} 16. Qb3 {[%clk 0:01:26]}  c6 {[%clk 0:02:36]} 17. Rxf8+ {[%clk 0:01:06]}  Kxf8 {[%clk 0:02:34]} 18. Rf1+ {[%clk 0:01:06]}  Kg7 {[%clk 0:02:34]} 19. Qb7+ {[%clk 0:01:05]}  Bd7 {[%clk 0:02:29]} 20. Nc7 {[%clk 0:00:58]}  Bxe3+ {[%clk 0:02:09]} 21. Kh1 {[%clk 0:00:57]}  Kh6 {[%clk 0:02:01]} 22. Nxa8 {[%clk 0:00:46]}  Bxd2 {[%clk 0:01:59]} 23. Rf7 {[%clk 0:00:42]}  Nf6 {[%clk 0:01:52]} 24. Rxf6 {[%clk 0:00:30]}  Qxf6 {[%clk 0:01:51]} 25. Qxd7 {[%clk 0:00:29]}  Qf2 {[%clk 0:01:46]} 26. Qg4 {[%clk 0:00:05]}  Be3 {[%clk 0:01:42]} 27. h4 {[%clk 0:00:02]}  Qg1# {[%clk 0:01:41]} 0-1


[Site "https://www.chess.com"]

[Event "Titled Tuesday Blitz April 19 Early 2022"]
[White "Dauner, Benedikt"]
[Black "Baker, Chris W"]
[WhiteFideId "16225899"]
[BlackFideId "401676"]
[WhiteElo "2230"]
[BlackElo "2227"]
[Result "1-0"]
[Round "10"]
[TimeControl "180+1"]
[Date "2022.04.19"]
[WhiteClock "0:01:24"]
[BlackClock "0:01:20"]

1. a3 {[%clk 0:03:00]}  e5 {[%clk 0:02:58]} 2. b4 {[%clk 0:03:00]}  d6 {[%clk 0:02:58]} 3. Bb2 {[%clk 0:03:00]}  Nf6 {[%clk 0:02:57]} 4. d4 {[%clk 0:03:00]}  exd4 {[%clk 0:02:56]} 5. Qxd4 {[%clk 0:03:00]}  Nc6 {[%clk 0:02:55]} 6. Qd2 {[%clk 0:03:01]}  Be7 {[%clk 0:02:45]} 7. Nc3 {[%clk 0:03:01]}  O-O {[%clk 0:02:44]} 8. e4 {[%clk 0:02:59]}  Re8 {[%clk 0:02:43]} 9. O-O-O {[%clk 0:02:52]}  a5 {[%clk 0:02:40]} 10. b5 {[%clk 0:02:50]}  Ne5 {[%clk 0:02:40]} 11. f4 {[%clk 0:02:47]}  Ng6 {[%clk 0:02:40]} 12. h4 {[%clk 0:02:40]}  Ng4 {[%clk 0:02:35]} 13. h5 {[%clk 0:02:30]}  Nxf4 {[%clk 0:02:34]} 14. Kb1 {[%clk 0:02:26]}  Bg5 {[%clk 0:02:34]} 15. Nf3 {[%clk 0:02:23]}  Bh6 {[%clk 0:02:28]} 16. Bc4 {[%clk 0:02:00]}  Be6 {[%clk 0:02:27]} 17. Bxe6 {[%clk 0:01:55]}  Rxe6 {[%clk 0:02:18]} 18. Nd4 {[%clk 0:01:52]}  Re5 {[%clk 0:02:12]} 19. Nf5 {[%clk 0:01:49]}  Rxf5 {[%clk 0:02:05]} 20. exf5 {[%clk 0:01:50]}  Qf6 {[%clk 0:01:58]} 21. Nd5 {[%clk 0:01:42]}  Qg5 {[%clk 0:01:54]} 22. Nxc7 {[%clk 0:01:33]}  Rc8 {[%clk 0:01:49]} 23. Qxd6 {[%clk 0:01:32]}  Nf2 {[%clk 0:01:27]} 24. f6 {[%clk 0:01:27]}  Nxh1 {[%clk 0:01:20]} 25. Qd8+ {[%clk 0:01:24]} 1-0


[Site "https://www.chess.com"]

[Event "Titled Tuesday Blitz April 19 Early 2022"]
[White "De Arruda, Leandro Formes"]
[Black "Harish, Neeraj"]
[WhiteFideId "22722009"]
[BlackFideId "30958130"]
[WhiteElo "1852"]
[BlackElo "1574"]
[Result "1-0"]
[Round "10"]
[TimeControl "180+1"]
[Date "2022.04.19"]
[WhiteClock "0:00:33"]
[BlackClock "0:00:05"]

1. d4 {[%clk 0:02:59]}  Nf6 {[%clk 0:02:58]} 2. Nf3 {[%clk 0:02:59]}  g6 {[%clk 0:02:57]} 3. g3 {[%clk 0:03:00]}  Bg7 {[%clk 0:02:57]} 4. Bg2 {[%clk 0:03:00]}  O-O {[%clk 0:02:58]} 5. O-O {[%clk 0:03:01]}  d5 {[%clk 0:02:56]} 6. Nc3 {[%clk 0:03:00]}  Bf5 {[%clk 0:02:52]} 7. Nh4 {[%clk 0:02:59]}  Be6 {[%clk 0:02:48]} 8. Bg5 {[%clk 0:02:58]}  h6 {[%clk 0:02:34]} 9. Be3 {[%clk 0:02:58]}  g5 {[%clk 0:02:31]} 10. Nf3 {[%clk 0:02:57]}  Ne4 {[%clk 0:02:24]} 11. Ne5 {[%clk 0:02:50]}  Nd7 {[%clk 0:02:11]} 12. Nxd7 {[%clk 0:02:37]}  Qxd7 {[%clk 0:02:08]} 13. Nxe4 {[%clk 0:02:36]}  dxe4 {[%clk 0:02:08]} 14. Bxe4 {[%clk 0:02:37]}  f5 {[%clk 0:01:51]} 15. Bg2 {[%clk 0:02:27]}  c6 {[%clk 0:01:37]} 16. f4 {[%clk 0:02:22]}  g4 {[%clk 0:01:35]} 17. c3 {[%clk 0:02:20]}  Bd5 {[%clk 0:01:28]} 18. Qe1 {[%clk 0:02:15]}  Bxg2 {[%clk 0:01:27]} 19. Kxg2 {[%clk 0:02:16]}  Qd5+ {[%clk 0:01:27]} 20. Kg1 {[%clk 0:02:16]}  h5 {[%clk 0:01:23]} 21. Qf2 {[%clk 0:02:16]}  Bf6 {[%clk 0:01:23]} 22. Qg2 {[%clk 0:02:16]}  Qxg2+ {[%clk 0:01:19]} 23. Kxg2 {[%clk 0:02:17]}  Kf7 {[%clk 0:01:15]} 24. Rae1 {[%clk 0:02:17]}  Rfd8 {[%clk 0:01:12]} 25. Bf2 {[%clk 0:02:17]}  c5 {[%clk 0:01:12]} 26. e3 {[%clk 0:02:06]}  Rac8 {[%clk 0:00:37]} 27. Rd1 {[%clk 0:02:05]}  e6 {[%clk 0:00:32]} 28. Rfe1 {[%clk 0:01:56]}  b5 {[%clk 0:00:28]} 29. Re2 {[%clk 0:01:55]}  a5 {[%clk 0:00:18]} 30. Red2 {[%clk 0:01:53]}  b4 {[%clk 0:00:16]} 31. Kf1 {[%clk 0:01:47]}  bxc3 {[%clk 0:00:14]} 32. bxc3 {[%clk 0:01:48]}  cxd4 {[%clk 0:00:15]} 33. cxd4 {[%clk 0:01:49]}  Rc4 {[%clk 0:00:14]} 34. Ke2 {[%clk 0:01:46]}  Rdc8 {[%clk 0:00:14]} 35. d5 {[%clk 0:01:44]}  exd5 {[%clk 0:00:14]} 36. Rxd5 {[%clk 0:01:45]}  Rc2+ {[%clk 0:00:14]} 37. R5d2 {[%clk 0:01:45]}  Rxd2+ {[%clk 0:00:14]} 38. Rxd2 {[%clk 0:01:46]}  Ke6 {[%clk 0:00:15]} 39. Kd3 {[%clk 0:01:41]}  Rd8+ {[%clk 0:00:14]} 40. Ke2 {[%clk 0:01:42]}  Rxd2+ {[%clk 0:00:13]} 41. Kxd2 {[%clk 0:01:43]}  Kd5 {[%clk 0:00:14]} 42. Kd3 {[%clk 0:01:42]}  Bg7 {[%clk 0:00:13]} 43. Be1 {[%clk 0:01:41]}  a4 {[%clk 0:00:11]} 44. Bb4 {[%clk 0:01:41]}  Bf6 {[%clk 0:00:11]} 45. Bf8 {[%clk 0:01:35]}  Bd8 {[%clk 0:00:10]} 46. Bb4 {[%clk 0:01:30]}  h4 {[%clk 0:00:09]} 47. Bc3 {[%clk 0:01:26]}  hxg3 {[%clk 0:00:08]} 48. hxg3 {[%clk 0:01:27]}  Bb6 {[%clk 0:00:08]} 49. Bd4 {[%clk 0:01:17]}  Ba5 {[%clk 0:00:07]} 50. Ke2 {[%clk 0:00:47]}  Ke4 {[%clk 0:00:06]} 51. Bc5 {[%clk 0:00:44]}  Bc3 {[%clk 0:00:05]} 52. Bb6 {[%clk 0:00:41]}  Bb4 {[%clk 0:00:02]} 53. Ba7 {[%clk 0:00:38]}  Bd6 {[%clk 0:00:02]} 54. Bd4 {[%clk 0:00:37]}  Be7 {[%clk 0:00:03]} 55. Bb6 {[%clk 0:00:35]}  Bd6 {[%clk 0:00:03]} 56. Kf2 {[%clk 0:00:34]}  Ba3 {[%clk 0:00:03]} 57. Ke2 {[%clk 0:00:34]}  Bc1 {[%clk 0:00:03]} 58. Ba7 {[%clk 0:00:34]}  Bb2 {[%clk 0:00:03]} 59. Bc5 {[%clk 0:00:34]}  Ba3 {[%clk 0:00:04]} 60. Bxa3 {[%clk 0:00:34]}  Kd5 {[%clk 0:00:04]} 61. Kd3 {[%clk 0:00:33]}  Ke6 {[%clk 0:00:05]} 62. e4 {[%clk 0:00:33]}  fxe4+ {[%clk 0:00:05]} 63. Kxe4 {[%clk 0:00:34]}  Kf6 {[%clk 0:00:06]} 64. f5 {[%clk 0:00:33]}  Kg5 {[%clk 0:00:05]} 1-0


[Site "https://www.chess.com"]